fUST/lending_fUST_20250124
["ID","MTS","AMOUNT","RATE_DAILY","PERIOD"]
[350217257,1737699040797,-500.0,0.00019589,3]
[350217258,1737699040808,-500.0,0.00019589,3]
[350217259,1737699040817,-752.75,0.00019589,3]
[350217261,1737699040827,-500.0,0.00019589,3]
[350217262,1737699040836,-500.0,0.00019589,3]
[350217263,1737699040846,-500.0,0.00019589,3]
[350217264,1737699040855,-376.42896662,0.0001959,2]
[350217265,1737699040865,-390.687,0.00019602,2]
[350217266,1737699040875,-216.15425177,0.00019602,2]
[350217267,1737699040884,-776.48,0.00019604,3]
[350217268,1737699040894,-500.0,0.00019624,3]
[350217269,1737699040903,-500.0,0.00019624,3]
[350217270,1737699040913,-500.0,0.00019624,3]
[350217271,1737699040924,-543.13,0.00019624,3]
[350217272,1737699040934,-160.0,0.00019632,2]
[350217273,1737699040948,-2702.84,0.00019633,3]
[350217274,1737699040958,-500.0,0.00019633,3]
[350217275,1737699040968,-151.0,0.00019633,2]
[350217276,1737699040978,-151.0,0.00019633,2]
[350217277,1737699040988,-151.0,0.00019633,2]
[350217278,1737699040998,-157.978737,0.00019633,2]
[350217279,1737699041008,-157.978737,0.00019633,2]
[350217280,1737699041018,-500.0,0.00019634,3]
[350217281,1737699041028,-610.8,0.00019634,3]
[350217282,1737699041037,-500.0,0.00019634,3]
[350217283,1737699041048,-776.48,0.00019634,3]
[350217284,1737699041058,-776.48,0.00019634,3]
[350217285,1737699041067,-500.0,0.00019634,3]
[350217286,1737699041077,-500.0,0.00019634,3]
[350217287,1737699041087,-500.0,0.00019634,3]
[350217288,1737699041097,-500.0,0.00019634,3]
[350217289,1737699041107,-600.15409282,0.00019634,3]
[350217290,1737699041117,-500.0,0.00019634,3]
[350217291,1737699041126,-337.30021685,0.00019634,3]
[350217292,1737699041136,-500.0,0.00019634,3]
[350217293,1737699041146,-500.0,0.00019634,3]
[350217294,1737699041155,-500.0,0.00019634,3]
[350217295,1737699041165,-500.0,0.00019634,3]
[350217296,1737699041174,-500.0,0.00019634,3]
[350217297,1737699041184,-500.0,0.00019634,3]
[350217298,1737699041194,-151.0,0.00019634,2]
[350217299,1737699041288,-151.0,0.00019634,2]
[350217300,1737699041298,-153.057859,0.00019634,2]
[350217301,1737699041309,-153.057859,0.00019634,2]
[350217302,1737699041318,-669.721264,0.00019634,2]
[350217303,1737699041328,-669.721264,0.00019634,2]
[350217304,1737699041338,-776.48,0.00019635,3]
[350217305,1737699041347,-500.0,0.00019673,2]
[350217306,1737699041357,-776.48,0.00019694,3]
[350217307,1737699041366,-927.31443759,0.00019706,2]
[350217308,1737699041376,-502.18859505,0.00019721,2]
[350217309,1737699041385,-501.16621595,0.00019721,2]
[350217310,1737699041395,-500.0,0.00019721,2]
[350217311,1737699041404,-160.0,0.00019725,2]
[350217312,1737699041413,-500.0,0.00019726,3]
[350217313,1737699041423,-500.0,0.00019726,3]
[350217314,1737699041432,-500.0,0.00019726,3]
[350217315,1737699041441,-982.26,0.00019726,3]
[350217316,1737699041451,-613.6828156,0.00019726,3]
[350217317,1737699041460,-500.0,0.00019726,3]
[350217318,1737699041469,-500.0,0.00019726,3]
[350217319,1737699041479,-500.0,0.00019726,3]
[350217320,1737699041488,-500.0,0.00019726,3]
[350217321,1737699041498,-500.0,0.00019726,3]
[350217322,1737699041507,-500.0,0.00019726,3]
[350217323,1737699041516,-500.0,0.00019726,3]
[350217324,1737699041526,-604.49451417,0.00019726,3]
[350217325,1737699041540,-500.0,0.00019726,3]
[350217326,1737699041558,-500.0,0.00019726,3]
[350217327,1737699041567,-500.0,0.00019726,3]
[350217328,1737699041577,-500.0,0.00019726,2]
[350217329,1737699041587,-699.74,0.00019726,3]
[350217330,1737699041596,-4273.63,0.00019726,3]
[350217331,1737699041605,-500.0,0.00019726,3]
[350217332,1737699041615,-500.0,0.00019726,3]
[350217333,1737699041624,-500.0,0.00019726,3]
[350217334,1737699041633,-349.85,0.00019726,3]
[350217335,1737699041642,-591.63,0.00019726,3]
[350217336,1737699041651,-656.36,0.00019726,3]
[350217337,1737699041661,-1917.03,0.00019726,3]
[350217338,1737699041670,-500.0,0.00019726,3]
[350217339,1737699041679,-500.0,0.00019726,3]
[350217340,1737699041688,-232.68,0.00019726,3]
[350217341,1737699041697,-5585.12,0.00019726,3]
[350217342,1737699041706,-500.0,0.00019726,3]
[350217343,1737699041718,-500.0,0.00019726,3]
[350217344,1737699041727,-899.59,0.00019726,3]
[350217345,1737699041736,-500.0,0.00019726,3]
[350217346,1737699041746,-428.25,0.00019726,3]
[350217347,1737699041756,-500.0,0.00019726,3]
[350217348,1737699041765,-500.0,0.00019726,3]
[350217349,1737699041774,-735.38,0.00019726,3]
[350217350,1737699041783,-1130.19,0.00019726,3]
[350217351,1737699041795,-306.65818323,0.00019726,3]
[350217352,1737699041804,-500.0,0.00019726,3]
[350217353,1737699041816,-500.0,0.00019726,3]
[350217354,1737699041826,-500.0,0.00019726,3]
[350217355,1737699041836,-500.0,0.00019726,3]
[350217356,1737699041845,-727.45,0.00019726,3]
[350217357,1737699041855,-500.0,0.00019726,3]
[350217358,1737699041865,-500.0,0.00019726,3]
[350217359,1737699041875,-500.0,0.00019726,3]
[350217360,1737699041885,-500.0,0.00019726,3]
[350217361,1737699041894,-3200.75,0.00019726,3]
[350217362,1737699041904,-500.0,0.00019726,3]
[350217363,1737699041914,-500.0,0.00019726,3]
[350217364,1737699041923,-500.0,0.00019726,3]
[350217365,1737699041933,-500.0,0.00019726,3]
[350217366,1737699041943,-500.0,0.00019726,3]
[350217367,1737699041952,-752.75,0.00019726,3]
[350217368,1737699041961,-500.0,0.00019726,3]
[350217369,1737699041971,-500.0,0.00019726,3]
[350217370,1737699041980,-500.0,0.00019726,3]
[350217371,1737699041990,-500.0,0.00019761,3]
[350217372,1737699042000,-500.0,0.00019761,3]
[350217373,1737699042009,-500.0,0.00019761,3]
[350217374,1737699042019,-151.0,0.00019761,2]
[350217375,1737699042028,-183.838918,0.00019761,2]
[350217376,1737699042038,-183.838918,0.00019761,2]
[350217377,1737699042052,-151.0,0.00019761,2]
[350217378,1737699042064,-151.0,0.00019761,2]
[350217379,1737699042074,-263.049221,0.00019761,2]
[350217380,1737699042084,-151.0,0.00019761,2]
[350217381,1737699042093,-151.0,0.00019761,2]
[350217382,1737699042103,-151.0,0.00019761,2]
[350217383,1737699042113,-151.0,0.00019761,2]
[350217384,1737699042122,-151.0,0.00019761,2]
[350217385,1737699042132,-151.0,0.00019761,2]
[350217386,1737699042141,-376.42896662,0.00019762,2]
[350217387,1737699042151,-160.0,0.00019769,2]
[350217388,1737699042161,-2702.84,0.0001977,3]
[350217389,1737699042170,-500.0,0.0001977,3]
[350217390,1737699042181,-297.106428,0.0001977,2]
[350217391,1737699042190,-297.106428,0.0001977,2]
[350217392,1737699042200,-151.0,0.0001977,2]
[350217393,1737699042210,-151.0,0.0001977,2]
[350217394,1737699042220,-500.0,0.00019771,3]
[350217395,1737699042229,-500.0,0.00019771,3]
[350217396,1737699042239,-776.48,0.00019771,3]
[350217397,1737699042248,-776.48,0.00019771,3]
[350217398,1737699042258,-500.0,0.00019771,3]
[350217399,1737699042267,-151.0,0.00019771,2]
[350217400,1737699042278,-151.0,0.00019771,2]
[350217401,1737699042288,-500.0,0.00019771,3]
[350217402,1737699042297,-500.0,0.00019771,3]
[350217403,1737699042307,-500.0,0.00019771,3]
[350217404,1737699042316,-606.4300019,0.00019771,3]
[350217405,1737699042325,-500.0,0.00019771,3]
[350217406,1737699042335,-500.0,0.00019771,3]
[350217407,1737699042344,-151.0,0.00019771,2]
[350217408,1737699042353,-151.0,0.00019772,2]
[350217409,1737699042363,-151.0,0.00019772,2]
[350217410,1737699042372,-151.0,0.00019772,2]
[350217411,1737699042381,-151.0,0.00019772,2]
[350217412,1737699042391,-776.48,0.00019796,3]
[350217413,1737699042400,-160.0,0.00019862,2]
[350217414,1737699042410,-500.0,0.00019863,3]
[350217415,1737699042419,-500.0,0.00019863,3]
[350217416,1737699042428,-500.0,0.00019863,3]
[350217417,1737699042437,-982.26,0.00019863,3]
[350217418,1737699042447,-500.0,0.00019863,3]
[350217419,1737699042456,-500.0,0.00019863,3]
[350217420,1737699042466,-500.0,0.00019863,3]
[350217421,1737699042475,-448.96227878,0.00019863,3]
[350217422,1737699042485,-277.32417551,0.00019863,3]
[350217423,1737699042494,-500.0,0.00019863,3]
[350217424,1737699042503,-500.0,0.00019863,3]
[350217425,1737699042513,-500.0,0.00019863,3]
[350217426,1737699042523,-500.0,0.00019863,2]
[350217427,1737699042532,-699.74,0.00019863,3]
[350217428,1737699042541,-3611.93651572,0.00019863,3]
[350217429,1737699042651,-661.69348428,0.00019863,3]
[350217430,1737699042661,-151.0,0.00019863,2]
[350217431,1737699042670,-151.0,0.00019863,2]
[350217432,1737699042679,-286.91131,0.00019863,2]
[350217433,1737699042688,-500.0,0.00019863,3]
[350217434,1737699042697,-172.3,0.00019863,3]
[350217435,1737699042707,-500.0,0.00019863,3]
[350217436,1737699042719,-591.63,0.00019863,3]
[350217437,1737699042729,-656.36,0.00019863,3]
[350217438,1737699042738,-1917.03,0.00019863,3]
[350217439,1737699042747,-500.0,0.00019863,3]
[350217440,1737699042756,-500.0,0.00019863,3]
[350217441,1737699042766,-5585.12,0.00019863,3]
[350217442,1737699042775,-500.0,0.00019863,3]
[350217443,1737699042784,-500.0,0.00019863,3]
[350217444,1737699042795,-175.54646414,0.00019863,3]
[350217445,1737699042811,-724.04353586,0.00019863,3]
[350217446,1737699042820,-500.0,0.00019863,3]
[350217447,1737699042829,-500.0,0.00019863,3]
[350217448,1737699042838,-500.0,0.00019863,3]
[350217449,1737699042848,-735.38,0.00019863,3]
[350217450,1737699042857,-1130.19,0.00019863,3]
[350217451,1737699042866,-500.0,0.00019863,3]
[350217452,1737699042874,-500.0,0.00019863,3]
[350217453,1737699042884,-500.0,0.00019863,3]
[350217454,1737699042893,-500.0,0.00019863,3]
[350217455,1737699042902,-727.45,0.00019863,3]
[350217456,1737699042911,-500.0,0.00019863,3]
[350217457,1737699042921,-500.0,0.00019863,3]
[350217458,1737699042930,-157.978737,0.00019863,2]
[350217459,1737699042939,-500.0,0.00019863,3]
[350217460,1737699042948,-500.0,0.00019863,3]
[350217461,1737699042957,-3200.75,0.00019863,3]
[350217462,1737699043042,-157.978737,0.00019863,2]
[350217463,1737699043052,-500.0,0.00019863,3]
[350217464,1737699043063,-500.0,0.00019863,3]
[350217466,1737699043073,-500.0,0.00019863,3]
[350217467,1737699043082,-500.0,0.00019863,3]
[350217468,1737699043093,-752.75,0.00019863,3]
[350217469,1737699043103,-500.0,0.00019863,3]
[350217470,1737699043113,-500.0,0.00019863,3]
[350217471,1737699043123,-500.0,0.00019863,3]
[350217472,1737699043133,-776.48,0.00019898,3]
[350217473,1737699043143,-776.48,0.00019898,3]
[350217474,1737699043153,-776.48,0.00019898,3]
[350217475,1737699043162,-151.0,0.00019898,2]
[350217476,1737699043172,-500.0,0.00019898,3]
[350217477,1737699043181,-152.554602,0.00019898,2]
[350217479,1737699043191,-500.0,0.00019898,3]
[350217481,1737699043200,-500.0,0.00019898,3]
[350217483,1737699043209,-151.0,0.00019898,2]
[350217485,1737699043219,-151.0,0.00019898,2]
[350217487,1737699043228,-153.057859,0.00019898,2]
[350217488,1737699043238,-153.057859,0.00019898,2]
[350217490,1737699043247,-669.721264,0.00019898,2]
[350217491,1737699043257,-669.721264,0.00019898,2]
[350217492,1737699043266,-177.299939,0.00019899,2]
[350217493,1737699043275,-177.299939,0.00019899,2]
[350217494,1737699043285,-160.0,0.00019906,2]
[350217495,1737699043294,-2702.84,0.00019907,3]
[350217496,1737699043304,-500.0,0.00019907,3]
[350217497,1737699043314,-500.0,0.00019908,3]
[350217498,1737699043324,-170.28,0.00019908,3]
[350217499,1737699043333,-776.48,0.00019908,3]
[350217500,1737699043343,-500.0,0.00019908,3]
[350217501,1737699043352,-243.34533129,0.00019908,3]
[350217503,1737699043362,-500.0,0.00019908,3]
[350217505,1737699043372,-500.0,0.00019908,3]
[350217507,1737699043381,-500.0,0.00019908,3]
[350217509,1737699043391,-500.0,0.00019908,3]
[350217510,1737699043400,-776.48,0.00019909,3]
[350217511,1737699043409,-2792.93970362,0.0001991,2]
[350217512,1737699043419,-376.42896662,0.00019934,2]
[350217513,1737699043429,-776.48,0.00019935,3]
[350217514,1737699043438,-776.48,0.00019994,3]
[350217515,1737699043448,-151.0,0.00019995,2]
[350217516,1737699043457,-160.0,0.00019999,2]
[350217518,1737699043467,-160.0,0.0002,2]
[350217519,1737699043476,-963.0,0.0002,3]
[350217520,1737699043487,-962.0,0.0002,3]
[350217521,1737699043497,-962.0,0.0002,3]
[350217522,1737699043506,-962.0,0.0002,3]
[350217523,1737699043516,-534.4098413,0.0002,5]
[350217524,1737699043525,-4983.0,0.0002,2]
[350217525,1737699043535,-500.0,0.0002,3]
[350217526,1737699043545,-500.0,0.0002,3]
[350217527,1737699043554,-265.38,0.0002,3]
[350217528,1737699043564,-982.26,0.0002,3]
[350217529,1737699043575,-500.0,0.0002,3]
[350217530,1737699043584,-151.0,0.0002,2]
[350217531,1737699043593,-151.0,0.0002,2]
[350217532,1737699043603,-500.0,0.0002,3]
[350217533,1737699043612,-151.0,0.0002,2]
[350217534,1737699043622,-500.0,0.0002,3]
[350217535,1737699043632,-154.995376,0.0002,2]
[350217536,1737699043641,-508.16830767,0.0002,3]
[350217537,1737699043651,-500.0,0.0002,3]
[350217538,1737699043660,-500.0,0.0002,2]
[350217539,1737699043670,-699.74,0.0002,3]
[350217540,1737699043680,-4273.63,0.0002,3]
[350217541,1737699043689,-500.0,0.0002,3]
[350217542,1737699043699,-500.0,0.0002,3]
[350217543,1737699043708,-591.63,0.0002,3]
[350217544,1737699043721,-656.36,0.0002,3]
[350217545,1737699043731,-160.0,0.0002,3]
[350217546,1737699043740,-1917.03,0.0002,3]
[350217547,1737699043749,-500.0,0.0002,3]
[350217548,1737699043760,-500.0,0.0002,3]
[350217549,1737699043770,-189.54756813,0.0002,3]
[350217550,1737699043783,-3435.28023237,0.0002,3]
[350217551,1737699043875,-1680.51653166,0.0002,3]
[350217552,1737699043887,-279.77566784,0.0002,3]
[350217553,1737699043897,-500.0,0.0002,3]
[350217554,1737699043906,-500.0,0.0002,3]
[350217555,1737699043916,-899.59,0.0002,3]
[350217556,1737699043926,-500.0,0.0002,3]
[350217557,1737699043935,-500.0,0.0002,3]
[350217558,1737699043945,-500.0,0.0002,3]
[350217559,1737699043954,-735.38,0.0002,3]
[350217560,1737699043964,-1130.19,0.0002,3]
[350217561,1737699043973,-178.7,0.0002,3]
[350217562,1737699043983,-500.0,0.0002,3]
[350217563,1737699043992,-500.0,0.0002,3]
[350217564,1737699044002,-500.0,0.0002,3]
[350217565,1737699044011,-727.45,0.0002,3]
[350217566,1737699044020,-500.0,0.0002,3]
[350217567,1737699044030,-500.0,0.0002,3]
[350217568,1737699044039,-500.0,0.0002,3]
[350217569,1737699044049,-151.0,0.0002,2]
[350217570,1737699044058,-500.0,0.0002,3]
[350217571,1737699044068,-3200.75,0.0002,3]
[350217572,1737699044078,-500.0,0.0002,3]
[350217573,1737699044087,-500.0,0.0002,3]
[350217574,1737699044098,-500.0,0.0002,3]
[350217575,1737699044107,-151.0,0.0002,2]
[350217576,1737699044116,-500.0,0.0002,3]
[350217577,1737699044126,-151.0,0.0002,2]
[350217578,1737699044135,-234.29022986,0.0002,3]
[350217579,1737699044148,-518.45977014,0.0002,3]
[350217580,1737699044158,-139.41227917,0.0002,3]
[350217581,1737699044170,-360.58772083,0.0002,3]
[350217582,1737699044178,-500.0,0.0002,3]
[350217583,1737699044188,-500.0,0.0002,3]
[350217584,1737699044199,-1000.0,0.00020021,2]
[350217585,1737699044208,-533.79851414,0.00020021,2]
[350217586,1737699044217,-504.96126157,0.00020021,2]
[350217587,1737699044227,-348.53985946,0.00020021,2]
[350217588,1737699044271,-40.9145,0.00020021,2]
[350217589,1737699044283,-82.3057986,0.00020021,2]
[350217590,1737699044291,-386.0752004,0.00020021,2]
[350217591,1737699044304,-115.0198371,0.00020021,2]
[350217592,1737699044314,-151.0,0.00020021,2]
[350217593,1737699044323,-115.9701629,0.00020021,2]
[350217594,1737699044383,-151.0,0.00019452,2]
[350217595,1737699044392,-151.0,0.00019589,2]
[350217596,1737699044402,-67.8687551,0.00020021,2]
[350217597,1737699044411,-183.838918,0.00020021,2]
[350217598,1737699044421,-297.050412,0.00020021,2]
[350217599,1737699044430,-151.0,0.00020021,2]
[350217600,1737699044439,-151.0,0.00020021,2]
[350217601,1737699044448,-151.0,0.00020035,2]
[350217602,1737699044457,-776.48,0.00020035,3]
[350217603,1737699044466,-776.48,0.00020035,3]
[350217604,1737699044475,-776.48,0.00020035,3]
[350217605,1737699044485,-776.48,0.00020035,3]
[350217606,1737699044494,-776.60174026,0.00020035,3]
[350217607,1737699044504,-153.852683,0.00020035,2]
[350217608,1737699044513,-151.0,0.00020035,2]
[350217609,1737699044523,-156.123328,0.00020035,2]
[350217610,1737699044532,-151.0,0.00020035,2]
[350217611,1737699044542,-151.0,0.00020035,2]
[350217612,1737699044551,-500.0,0.00020035,3]
[350217613,1737699044560,-500.0,0.00020035,3]
[350217614,1737699044569,-324.17,0.00020035,3]
[350217615,1737699044578,-151.0,0.00020035,2]
[350217616,1737699044588,-297.106428,0.00020039,2]
[350217617,1737699044597,-297.106428,0.00020039,2]
[350217618,1737699044606,-1946.68776287,0.0002004,2]
[350217619,1737699044615,-176.32870174,0.00020043,2]
[350217620,1737699044624,-152.738497,0.00020044,2]
[350217621,1737699044634,-151.0,0.00020044,2]
[350217622,1737699044642,-151.0,0.00020044,2]
[350217623,1737699044651,-151.0,0.00020044,2]
[350217624,1737699044660,-2702.84,0.00020044,3]
[350217625,1737699044669,-500.0,0.00020044,3]
[350217626,1737699044679,-380.88,0.00020045,3]
[350217627,1737699044759,-500.0,0.00020045,3]
[350217628,1737699044769,-500.0,0.00020045,3]
[350217629,1737699044778,-511.05316783,0.00020045,3]
[350217630,1737699044787,-500.0,0.00020045,3]
[350217631,1737699044799,-151.0,0.00020045,2]
[350217632,1737699044809,-500.0,0.00020045,2]
[350217633,1737699044819,-500.0,0.00020045,2]
[350217634,1737699044828,-500.0,0.00020045,2]
[350217635,1737699044837,-500.0,0.00020045,2]
[350217636,1737699044847,-500.0,0.00020045,2]
[350217637,1737699044856,-500.0,0.00020045,2]
[350217638,1737699044865,-500.0,0.00020045,2]
[350217639,1737699044875,-500.0,0.00020045,2]
[350217640,1737699044884,-500.0,0.00020045,2]
[350217641,1737699044894,-230.081343,0.00020045,2]
[350217642,1737699044904,-151.0,0.00020045,2]
[350217643,1737699044913,-155.32224,0.00020045,2]
[350217644,1737699044923,-157.978737,0.00020045,2]
[350217645,1737699044933,-157.978737,0.00020045,2]
[350217646,1737699044942,-177.299939,0.00020046,2]
[350217647,1737699044951,-177.299939,0.00020046,2]
[350217648,1737699044961,-3997.69,0.000201,2]
[350217649,1737699044970,-6574.4,0.000201,2]
[350217650,1737699044979,-151.0,0.000201,3]
[350217651,1737699044988,-151.0,0.000201,2]
[350217652,1737699044997,-185.980969,0.000201,2]
[350217653,1737699045007,-153.057859,0.000201,2]
[350217654,1737699045016,-153.057859,0.000201,2]
[350217655,1737699045025,-669.721264,0.000201,2]
[350217656,1737699045034,-669.721264,0.000201,2]
[350217657,1737699045043,-376.42896662,0.00020107,2]
[350217658,1737699045054,-1131.85779133,0.00020136,2]
[350217659,1737699045064,-500.0,0.00020136,3]
[350217660,1737699045074,-500.0,0.00020136,3]
[350217661,1737699045084,-982.26,0.00020136,3]
[350217662,1737699045093,-500.0,0.00020136,3]
[350217663,1737699045103,-211.11,0.00020136,3]
[350217664,1737699045112,-500.0,0.00020136,3]
[350217665,1737699045121,-500.0,0.00020136,3]
[350217666,1737699045130,-500.0,0.00020136,2]
[350217667,1737699045139,-699.74,0.00020136,3]
[350217668,1737699045149,-4273.63,0.00020136,3]
[350217669,1737699045158,-500.0,0.00020136,3]
[350217670,1737699045168,-500.0,0.00020136,3]
[350217671,1737699045178,-591.63,0.00020136,3]
[350217672,1737699045187,-656.36,0.00020136,3]
[350217673,1737699045196,-1917.03,0.00020136,3]
[350217674,1737699045206,-500.0,0.00020136,3]
[350217675,1737699045215,-454.46,0.00020136,3]
[350217676,1737699045224,-5585.12,0.00020136,3]
[350217677,1737699045234,-500.0,0.00020136,3]
[350217678,1737699045244,-500.0,0.00020136,3]
[350217679,1737699045254,-899.59,0.00020136,3]
[350217680,1737699045263,-443.1,0.00020136,3]
[350217681,1737699045273,-500.0,0.00020136,3]
[350217682,1737699045283,-500.0,0.00020136,3]
[350217683,1737699045292,-735.38,0.00020136,3]
[350217684,1737699045302,-1130.19,0.00020136,3]
[350217685,1737699045312,-500.0,0.00020136,3]
[350217686,1737699045321,-500.0,0.00020136,3]
[350217687,1737699045331,-500.0,0.00020136,3]
[350217688,1737699045340,-727.45,0.00020136,3]
[350217689,1737699045349,-500.0,0.00020136,3]
[350217690,1737699045359,-500.0,0.00020136,3]
[350217691,1737699045368,-500.0,0.00020136,3]
[350217692,1737699045377,-500.0,0.00020136,3]
[350217693,1737699045387,-3200.75,0.00020136,3]
[350217694,1737699045396,-500.0,0.00020136,3]
[350217695,1737699045406,-500.0,0.00020136,3]
[350217696,1737699045416,-500.0,0.00020136,3]
[350217697,1737699045425,-500.0,0.00020136,3]
[350217698,1737699045434,-752.75,0.00020136,3]
[350217699,1737699045444,-179.37337309,0.00020136,3]
[350217700,1737699045453,-526.09,0.00020136,3]
[350217701,1737699045463,-500.0,0.00020136,3]
[350217702,1737699045473,-500.0,0.00020172,3]
[350217703,1737699045484,-500.0,0.00020172,3]
[350217704,1737699045494,-151.0,0.00020181,2]
[350217705,1737699045503,-151.0,0.00020181,2]
[350217706,1737699045512,-238.002186,0.00020181,2]
[350217707,1737699045522,-2702.84,0.00020181,3]
[350217708,1737699045531,-500.0,0.00020181,3]
[350217709,1737699045540,-151.0,0.00020182,2]
[350217710,1737699045549,-500.0,0.00020182,3]
[350217711,1737699045558,-500.0,0.00020182,3]
[350217712,1737699045568,-151.0,0.00020182,2]
[350217713,1737699045577,-183.838918,0.00020182,2]
[350217714,1737699045586,-183.838918,0.00020182,2]
[350217715,1737699045595,-151.0,0.00020182,2]
[350217716,1737699045605,-151.0,0.00020182,2]
[350217717,1737699045614,-152.373879,0.00020183,2]
[350217718,1737699045623,-500.0,0.00020273,3]
[350217719,1737699045634,-500.0,0.00020273,3]
[350217720,1737699045643,-982.26,0.00020273,3]
[350217721,1737699045652,-608.87,0.00020273,3]
[350217722,1737699045661,-500.0,0.00020273,3]
[350217723,1737699045671,-500.0,0.00020273,3]
[350217724,1737699045680,-500.0,0.00020273,2]
[350217725,1737699045689,-699.74,0.00020273,3]
[350217726,1737699045698,-4273.63,0.00020273,3]
[350217727,1737699045707,-168.54,0.00020273,3]
[350217728,1737699045718,-500.0,0.00020273,3]
[350217729,1737699045728,-591.63,0.00020273,3]
[350217730,1737699045738,-656.36,0.00020273,3]
[350217731,1737699045747,-1917.03,0.00020273,3]
[350217732,1737699045756,-500.0,0.00020273,3]
[350217733,1737699045766,-5585.12,0.00020273,3]
[350217734,1737699045775,-500.0,0.00020273,3]
[350217735,1737699045784,-500.0,0.00020273,3]
[350217736,1737699045794,-899.59,0.00020273,3]
[350217737,1737699045803,-500.0,0.00020273,3]
[350217738,1737699045813,-500.0,0.00020273,3]
[350217739,1737699045823,-735.38,0.00020273,3]
[350217740,1737699045832,-1130.19,0.00020273,3]
[350217741,1737699045841,-500.0,0.00020273,3]
[350217742,1737699045851,-500.0,0.00020273,3]
[350217743,1737699045860,-500.0,0.00020273,3]
[350217744,1737699045869,-727.45,0.00020273,3]
[350217745,1737699045880,-500.0,0.00020273,3]
[350217746,1737699045889,-500.0,0.00020273,3]
[350217747,1737699045899,-500.0,0.00020273,3]
[350217748,1737699045908,-151.0,0.00020273,2]
[350217749,1737699045917,-500.0,0.00020273,3]
[350217750,1737699045926,-3200.75,0.00020273,3]
[350217751,1737699045936,-500.0,0.00020273,3]
[350217752,1737699045946,-500.0,0.00020273,3]
[350217753,1737699045956,-500.0,0.00020273,3]
[350217754,1737699045965,-151.0,0.00020273,2]
[350217755,1737699045975,-500.0,0.00020273,3]
[350217756,1737699045985,-151.0,0.00020273,2]
[350217757,1737699045994,-752.75,0.00020273,3]
[350217758,1737699046004,-500.0,0.00020273,3]
[350217759,1737699046013,-376.42896662,0.00020279,2]
[350217760,1737699046023,-151.0,0.000203,3]
[350217761,1737699046033,-151.0,0.00020309,2]
[350217762,1737699046042,-151.0,0.00020309,2]
[350217763,1737699046053,-151.0,0.00020309,2]
[350217764,1737699046062,-500.0,0.00020309,3]
[350217765,1737699046072,-500.0,0.00020309,3]
[350217766,1737699046082,-154.565545,0.00020318,2]
[350217767,1737699046091,-151.0,0.00020318,2]
[350217768,1737699046100,-151.0,0.00020318,2]
[350217769,1737699046109,-151.0,0.00020318,2]